{"text_format":"3","workbook":"xlsx","n_sheets":2,"sheets":["Έξοδα","Κατηγορία"],"not_rendered":{"defined_names":5},"read":"whole","date_system":"1900"}

{"sheet":"Έξοδα","index":0,"n_rows":25,"n_cols":7,"rows_kept":25,"merged":[[0,1,0,5],[1,1,1,5]]}
[null,"ΠΡΟΫΠΟΛΟΓΙΣΜΟΣ ΕΞΟΔΩΝ",{"$nulls":4},{"$f":"TODAY()","v":{"v":44580,"d":"4458000.00%"}}]
[null,"Επωνυμία εταιρείας"]
[null,"Έξοδο","Κατηγορία","Προϋπολογισμός","Πραγματικά","Διαφορά (€)","Διαφορά (%)"]
[null,"Διαφήμιση","Λειτουργικές",null,null,{"$f":"IFERROR(SUM(Έξοδα[[#This Row],[Προϋπολογισμός]]-Έξοδα[[#This Row],[Πραγματικά]]), \"\")","v":0},{"$f":"IFERROR(SUM(Έξοδα[[#This Row],[Διαφορά (€)]]/Έξοδα[[#This Row],[Προϋπολογισμός]]),\"\")","v":""}]
[null,"Χρέη","Λειτουργικές",null,null,{"$f":"IFERROR(SUM(Έξοδα[[#This Row],[Προϋπολογισμός]]-Έξοδα[[#This Row],[Πραγματικά]]), \"\")","v":0},{"$f":"IFERROR(SUM(Έξοδα[[#This Row],[Διαφορά (€)]]/Έξοδα[[#This Row],[Προϋπολογισμός]]),\"\")","v":""}]
[null,"Επιδόματα","Λειτουργικές",null,null,{"$f":"IFERROR(SUM(Έξοδα[[#This Row],[Προϋπολογισμός]]-Έξοδα[[#This Row],[Πραγματικά]]), \"\")","v":0},{"$f":"IFERROR(SUM(Έξοδα[[#This Row],[Διαφορά (€)]]/Έξοδα[[#This Row],[Προϋπολογισμός]]),\"\")","v":""}]
[null,"Προμήθειες","Λειτουργικές",null,null,{"$f":"IFERROR(SUM(Έξοδα[[#This Row],[Προϋπολογισμός]]-Έξοδα[[#This Row],[Πραγματικά]]), \"\")","v":0},{"$f":"IFERROR(SUM(Έξοδα[[#This Row],[Διαφορά (€)]]/Έξοδα[[#This Row],[Προϋπολογισμός]]),\"\")","v":""}]
[null,"Ταχυδρομικά τέλη","Λειτουργικές",null,null,{"$f":"IFERROR(SUM(Έξοδα[[#This Row],[Προϋπολογισμός]]-Έξοδα[[#This Row],[Πραγματικά]]), \"\")","v":0},{"$f":"IFERROR(SUM(Έξοδα[[#This Row],[Διαφορά (€)]]/Έξοδα[[#This Row],[Προϋπολογισμός]]),\"\")","v":""}]
[null,"Ενοίκιο ή στεγαστικό δάνειο","Λειτουργικές",null,null,{"$f":"IFERROR(SUM(Έξοδα[[#This Row],[Προϋπολογισμός]]-Έξοδα[[#This Row],[Πραγματικά]]), \"\")","v":0},{"$f":"IFERROR(SUM(Έξοδα[[#This Row],[Διαφορά (€)]]/Έξοδα[[#This Row],[Προϋπολογισμός]]),\"\")","v":""}]
[null,"Έξοδα πωλήσεων","Λειτουργικές",null,null,{"$f":"IFERROR(SUM(Έξοδα[[#This Row],[Προϋπολογισμός]]-Έξοδα[[#This Row],[Πραγματικά]]), \"\")","v":0},{"$f":"IFERROR(SUM(Έξοδα[[#This Row],[Διαφορά (€)]]/Έξοδα[[#This Row],[Προϋπολογισμός]]),\"\")","v":""}]
[null,"Φόροι","Λειτουργικές",null,null,{"$f":"IFERROR(SUM(Έξοδα[[#This Row],[Προϋπολογισμός]]-Έξοδα[[#This Row],[Πραγματικά]]), \"\")","v":0},{"$f":"IFERROR(SUM(Έξοδα[[#This Row],[Διαφορά (€)]]/Έξοδα[[#This Row],[Προϋπολογισμός]]),\"\")","v":""}]
[null,"Υπηρεσίες κοινής ωφελείας","Λειτουργικές",null,null,{"$f":"IFERROR(SUM(Έξοδα[[#This Row],[Προϋπολογισμός]]-Έξοδα[[#This Row],[Πραγματικά]]), \"\")","v":0},{"$f":"IFERROR(SUM(Έξοδα[[#This Row],[Διαφορά (€)]]/Έξοδα[[#This Row],[Προϋπολογισμός]]),\"\")","v":""}]
[null,"Άλλα","Λειτουργικές",null,null,{"$f":"IFERROR(SUM(Έξοδα[[#This Row],[Προϋπολογισμός]]-Έξοδα[[#This Row],[Πραγματικά]]), \"\")","v":0},{"$f":"IFERROR(SUM(Έξοδα[[#This Row],[Διαφορά (€)]]/Έξοδα[[#This Row],[Προϋπολογισμός]]),\"\")","v":""}]
[null,"Ασφάλιση","Λειτουργικές",null,null,{"$f":"IFERROR(SUM(Έξοδα[[#This Row],[Προϋπολογισμός]]-Έξοδα[[#This Row],[Πραγματικά]]), \"\")","v":0},{"$f":"IFERROR(SUM(Έξοδα[[#This Row],[Διαφορά (€)]]/Έξοδα[[#This Row],[Προϋπολογισμός]]),\"\")","v":""}]
[null,"Τόκοι","Λειτουργικές",null,null,{"$f":"IFERROR(SUM(Έξοδα[[#This Row],[Προϋπολογισμός]]-Έξοδα[[#This Row],[Πραγματικά]]), \"\")","v":0},{"$f":"IFERROR(SUM(Έξοδα[[#This Row],[Διαφορά (€)]]/Έξοδα[[#This Row],[Προϋπολογισμός]]),\"\")","v":""}]
[null,"Τηλέφωνο","Λειτουργικές",null,null,{"$f":"IFERROR(SUM(Έξοδα[[#This Row],[Προϋπολογισμός]]-Έξοδα[[#This Row],[Πραγματικά]]), \"\")","v":0},{"$f":"IFERROR(SUM(Έξοδα[[#This Row],[Διαφορά (€)]]/Έξοδα[[#This Row],[Προϋπολογισμός]]),\"\")","v":""}]
[null,"Συντήρηση και επισκευές","Λειτουργικές",null,null,{"$f":"IFERROR(SUM(Έξοδα[[#This Row],[Προϋπολογισμός]]-Έξοδα[[#This Row],[Πραγματικά]]), \"\")","v":0},{"$f":"IFERROR(SUM(Έξοδα[[#This Row],[Διαφορά (€)]]/Έξοδα[[#This Row],[Προϋπολογισμός]]),\"\")","v":""}]
[null,"Νομικά έξοδα","Λειτουργικές",null,null,{"$f":"IFERROR(SUM(Έξοδα[[#This Row],[Προϋπολογισμός]]-Έξοδα[[#This Row],[Πραγματικά]]), \"\")","v":0},{"$f":"IFERROR(SUM(Έξοδα[[#This Row],[Διαφορά (€)]]/Έξοδα[[#This Row],[Προϋπολογισμός]]),\"\")","v":""}]
[null,"Αποσβέσεις","Λειτουργικές",null,null,{"$f":"IFERROR(SUM(Έξοδα[[#This Row],[Προϋπολογισμός]]-Έξοδα[[#This Row],[Πραγματικά]]), \"\")","v":0},{"$f":"IFERROR(SUM(Έξοδα[[#This Row],[Διαφορά (€)]]/Έξοδα[[#This Row],[Προϋπολογισμός]]),\"\")","v":""}]
[null,"Έξοδα αποστολής ειδών","Λειτουργικές",null,null,{"$f":"IFERROR(SUM(Έξοδα[[#This Row],[Προϋπολογισμός]]-Έξοδα[[#This Row],[Πραγματικά]]), \"\")","v":0},{"$f":"IFERROR(SUM(Έξοδα[[#This Row],[Διαφορά (€)]]/Έξοδα[[#This Row],[Προϋπολογισμός]]),\"\")","v":""}]
[null,"Χώρος αποθήκευσης","Λειτουργικές",null,null,{"$f":"IFERROR(SUM(Έξοδα[[#This Row],[Προϋπολογισμός]]-Έξοδα[[#This Row],[Πραγματικά]]), \"\")","v":0},{"$f":"IFERROR(SUM(Έξοδα[[#This Row],[Διαφορά (€)]]/Έξοδα[[#This Row],[Προϋπολογισμός]]),\"\")","v":""}]
[null,"Κατάστημα","Προσωπικοί λόγοι",null,null,{"$f":"IFERROR(SUM(Έξοδα[[#This Row],[Προϋπολογισμός]]-Έξοδα[[#This Row],[Πραγματικά]]), \"\")","v":0},{"$f":"IFERROR(SUM(Έξοδα[[#This Row],[Διαφορά (€)]]/Έξοδα[[#This Row],[Προϋπολογισμός]]),\"\")","v":""}]
[null,"Πωλητές","Προσωπικοί λόγοι",null,null,{"$f":"IFERROR(SUM(Έξοδα[[#This Row],[Προϋπολογισμός]]-Έξοδα[[#This Row],[Πραγματικά]]), \"\")","v":0},{"$f":"IFERROR(SUM(Έξοδα[[#This Row],[Διαφορά (€)]]/Έξοδα[[#This Row],[Προϋπολογισμός]]),\"\")","v":""}]
[null,"Άλλο","Προσωπικοί λόγοι",null,null,{"$f":"IFERROR(SUM(Έξοδα[[#This Row],[Προϋπολογισμός]]-Έξοδα[[#This Row],[Πραγματικά]]), \"\")","v":0},{"$f":"IFERROR(SUM(Έξοδα[[#This Row],[Διαφορά (€)]]/Έξοδα[[#This Row],[Προϋπολογισμός]]),\"\")","v":""}]
[null,"Συνολικά έξοδα",null,{"$f":"IFERROR(SUM(Έξοδα[Προϋπολογισμός]), \"\")","v":0},{"$f":"IFERROR(SUM(Έξοδα[Πραγματικά]), \"\")","v":0},{"$f":"IFERROR(SUM(Έξοδα[Διαφορά (€)]), \"\")","v":0},{"$f":"IFERROR(SUM(Έξοδα[[#Totals],[Διαφορά (€)]]/Έξοδα[[#Totals],[Προϋπολογισμός]]),\"\")","v":""}]

{"sheet":"Κατηγορία","index":1,"n_rows":4,"n_cols":2,"rows_kept":4}
[null,"Αναζήτηση κατηγορίας"]
[null,"Κατηγορία"]
[null,"Λειτουργικές"]
[null,"Προσωπικοί λόγοι"]